Organisation Name,Organisation Code,Directorate/Service,Service Category Label,Service Code,Supplier Name,Supplier Reference,Payment Date,Transaction Number,Net payment,Purpose of Spend
North West Leicestershire District Council,31UH,Leisure & Culture,Cultural Services Arts & Events,CULTEV,Chameleon Pro Audio T/A Lux Technical Ltd,A027592,15/02/2017,1340109,1935.6,Events Equipment
North West Leicestershire District Council,31UH,Street Management,Environment - Street Scene,ESS,Willings Services Limited,A032043,08/02/2017,1340116,320,Operational Equipment
North West Leicestershire District Council,31UH,Planning & Development,Building Control,EBC,Leicestershire County Council,A027423,08/02/2017,1340201,3045,Search Fees - L.C.C.
North West Leicestershire District Council,31UH,Leisure Centres,Hood Park Leisure Centre,HPLC,Zoggs International Ltd,A001833,08/02/2017,1340404,977.4,Equipment For Resale
North West Leicestershire District Council,31UH,Environmental Health,Environmental Health & Licensing,EEHL,Killgerm Chemicals Ltd,A000890,08/02/2017,1340512,410.71,Baits & Poisons
North West Leicestershire District Council,31UH,Leisure Centres,Hood Park Leisure Centre,HPLC,Access Service & Repair Ltd,A040663,08/02/2017,1340541,420,Training Course
North West Leicestershire District Council,31UH,Leisure Centres,Hermitage Leisure Centre,HLC,Access Service & Repair Ltd,A040663,08/02/2017,1340542,400,Service Contracts
North West Leicestershire District Council,31UH,Communications,Corporate - Customer Services,CS,Freedom Communications (UK) Ltd,A032826,22/02/2017,1340691,750,Training Course
North West Leicestershire District Council,31UH,Planning & Development,Environment Community Planning,ECP,Essa Technology,A036876,08/02/2017,1340716,3725.32,Operational Equipment - Rep & Maint
North West Leicestershire District Council,31UH,Street Management,Environment Transport,ENOT,Malvern Tyres,A035175,08/02/2017,1340718,310.28,Transport Costs - Tyres
North West Leicestershire District Council,31UH,Street Management,Environment Transport,ENOT,Malvern Tyres,A035175,08/02/2017,1340719,301.84,Vehicle Parts
North West Leicestershire District Council,31UH,Street Management,Environment Transport,ENOT,R Massey & Son (Woodville) Ltd,A033258,08/02/2017,1340721,808.36,Repairs - Parts
North West Leicestershire District Council,31UH,Street Management,Environment Transport,ENOT,Terberg Matec UK Limited,A001647,08/02/2017,1340727,682.48,Repairs - Parts
North West Leicestershire District Council,31UH,Street Management,Environment Transport,ENOT,Aebi Schmidt Uk Limited,A017053,08/02/2017,1340728,393.59,Repairs - Parts
North West Leicestershire District Council,31UH,Street Management,Environment Transport,ENOT,Lee Wells Autobodies Ltd,A031849,08/02/2017,1340729,726.1,Non Insurance Damage
North West Leicestershire District Council,31UH,Property Services,Property Commercial Lettings,PROPCL,Gleam Team Services Limited,A000129,08/02/2017,1340733,350,General Repairs
North West Leicestershire District Council,31UH,Finance,Revenues,REVS,Harborough District Council,A008631,22/02/2017,1340734,14784.75,Agency Staff
North West Leicestershire District Council,31UH,Street Management,Environment General Technician,ENOGT,Commutaports Ltd,A000389,08/02/2017,1340736,474,Street Furniture
North West Leicestershire District Council,31UH,Finance,Housing Benefits,BENS,Hinckley & Bosworth Borough Council,A000770,08/02/2017,1340737,1676,Shared Software Costs
North West Leicestershire District Council,31UH,Street Management,Environment - Street Scene,ESS,Clear Skies Software Ltd,A029730,08/02/2017,1340742,1850,Computer Software Maintenance
North West Leicestershire District Council,31UH,Housing,HRA Housing Management,HRAHM,Redacted-personal data,A043785,08/02/2017,1340743,250,Under Occupancy Incentives
North West Leicestershire District Council,31UH,Housing,HRA Housing Management,HRAHM,Redacted-personal data,A043784,08/02/2017,1340744,250,Under Occupancy Incentives
North West Leicestershire District Council,31UH,Housing Repairs,HRA Housing Repairs & Maintenance,HRAHRM,BSP Consulting,A043552,08/02/2017,1340745,660,Legal & Professional Services
North West Leicestershire District Council,31UH,Housing Repairs,HRA Housing Repairs & Maintenance,HRAHRM,The Drawing Room (Architects) Ltd,A043620,08/02/2017,1340746,7200,Legal & Professional Services
North West Leicestershire District Council,31UH,Housing Repairs,HRA Housing Repairs & Maintenance,HRAHRM,Structural Design Associates,A043668,08/02/2017,1340747,850,Legal & Professional Services
North West Leicestershire District Council,31UH,Finance,Exchequer Services,EXCH,Comensura Limited,A036958,08/02/2017,1340751,17631.27,Agency Staff
North West Leicestershire District Council,31UH,Street Management,Environment - Street Scene,ESS,EPT SERVICES,A039764,08/02/2017,1340752,308.12,Protective Clothing
North West Leicestershire District Council,31UH,Street Management,Environment - Street Scene,ESS,EPT SERVICES,A039764,08/02/2017,1340753,600,Operational Equipment
North West Leicestershire District Council,31UH,Information Technology,ICT Services,ICT,Centreprise International Ltd,A043431,08/02/2017,1340759,740,Admin Equipment - Purchased & Recharged
North West Leicestershire District Council,31UH,Information Technology,ICT Services,ICT,Centreprise International Ltd,A043431,08/02/2017,1340760,8370,Contract Payments (Dws) Ext
North West Leicestershire District Council,31UH,Planning & Development,Environment - Development Control,EDC,Euro RSCG People T/A Havas People Ltd,A001395,08/02/2017,1340761,659.15,Advertising
North West Leicestershire District Council,31UH,Planning & Development,Environment - Development Control,EDC,Euro RSCG People T/A Havas People Ltd,A001395,08/02/2017,1340762,297.96,Advertising
North West Leicestershire District Council,31UH,Street Management,Environment - Street Scene,ESS,City Electrical Factors Limited,A035306,08/02/2017,1340764,410.27,General Repairs
North West Leicestershire District Council,31UH,Street Management,Environment Transport,ENOT,Berendsen Uk Ltd,A001600,08/02/2017,1340765,346.19,Protective Clothing
North West Leicestershire District Council,31UH,Information Technology,ICT Services,ICT,Dell Computer Corporation Ltd,A000470,08/02/2017,1340766,375,Phone system & network equipment
North West Leicestershire District Council,31UH,Property Services,Property Facilities Management,PROPFM,TECSERV UK LIMITED,A028261,08/02/2017,1340768,333,General Repairs
North West Leicestershire District Council,31UH,Housing,HRA Housing Management,HRAHM,Western Power Distribution,A038499,08/02/2017,1340770,727.08,Legal & Professional Services
North West Leicestershire District Council,31UH,Neighbourhoods & Communities,N & C Neighbourhoods,NACN,Whitwick Scout Group,A037607,08/02/2017,1340771,20000,Community Initiatives
North West Leicestershire District Council,31UH,Neighbourhoods & Communities,N & C Neighbourhoods,NACN,MRC Community Action,A001208,08/02/2017,1340772,540,Community Initiatives
North West Leicestershire District Council,31UH,Housing Repairs,HRA Housing Repairs & Maintenance,HRAHRM,Cirrus Communication Systems Ltd,A040630,08/02/2017,1340773,1150.49,Lifts & Escalators
North West Leicestershire District Council,31UH,Planning & Development,Environment Community Planning,ECP,The CCTV User Group Ltd,A043781,08/02/2017,1340774,275,Training Course
North West Leicestershire District Council,31UH,Housing Strategy,Community - Housing Strategy,HS,ESPO,A000958,08/02/2017,1340777,252,Office Supplies
North West Leicestershire District Council,31UH,Legal and Support Services,Business Development Team,BDT,ESPO,A000958,08/02/2017,1340778,291,Office Supplies
North West Leicestershire District Council,31UH,Street Management,Environment Transport,ENOT,DR Baling Wire Manufacturers Ltd,A032890,08/02/2017,1340783,1720,Operational Equipment
North West Leicestershire District Council,31UH,Finance,Housing Benefits,BENS,Capita Business Services Ltd,A002968,08/02/2017,1340784,2064.72,Computing
North West Leicestershire District Council,31UH,Information Technology,ICT Services,ICT,Sec-1,A036989,08/02/2017,1340786,1285,Admin Equipment - Maintenance
North West Leicestershire District Council,31UH,Street Management,Environment Transport,ENOT,Dennis Eagle Limited,A000522,15/02/2017,1340789,372.33,Repairs - Parts
North West Leicestershire District Council,31UH,Street Management,Environment - Street Scene,ESS,Apse,A018837,08/02/2017,1340794,387,Training Course
North West Leicestershire District Council,31UH,Street Management,Environment - Street Scene,ESS,Metric Group Ltd (Sales),A028996,08/02/2017,1340795,252,Subscriptions
North West Leicestershire District Council,31UH,Street Management,Environment - Street Scene,ESS,Willings Services Limited,A032043,08/02/2017,1340796,361,Operational Equipment
North West Leicestershire District Council,31UH,Housing,HRA Housing Management,HRAHM,Northern Housing Consortium Ltd,A028253,08/02/2017,1340800,4799.54,Alarm System Telephones
North West Leicestershire District Council,31UH,Housing Repairs,HRA Housing Repairs & Maintenance,HRAHRM,Coalville Signs,A000370,01/03/2017,1340803,328,Signage
North West Leicestershire District Council,31UH,Housing Repairs,HRA Housing Repairs & Maintenance,HRAHRM,Coalville Signs,A000370,08/02/2017,1340807,2338.6,Signage
North West Leicestershire District Council,31UH,Corporate Director,Human Resources,HR,Spectra Security Limited,A002190,08/02/2017,1340809,310,Door Access Systems
North West Leicestershire District Council,31UH,Finance,Housing Benefits,BENS,Morgan Hunt Public Sector Ltd,A033787,08/02/2017,1340812,552,Agency Staff
North West Leicestershire District Council,31UH,Housing,HRA Older Persons Service,HRAOPS,Tunstall Healthcare (UK) Limited,A001701,08/02/2017,1340815,2216,Alarm System Telephones
North West Leicestershire District Council,31UH,Housing,HRA Housing Management,HRAHM,ECO Skip Hire Ltd,A041559,08/02/2017,1340816,385,General Repairs
North West Leicestershire District Council,31UH,Finance,Housing Benefits,BENS,Morgan Hunt Public Sector Ltd,A033787,08/02/2017,1340817,888,Agency Staff
North West Leicestershire District Council,31UH,Housing Strategy,Community - Housing Strategy,HS,PJ's Properties,A036347,08/02/2017,1340818,315.21,Rent Deposit Scheme
North West Leicestershire District Council,31UH,Housing Repairs,HRA Housing Repairs & Maintenance,HRAHRM,Sure Maintenance Ltd,A040460,08/02/2017,1340819,19168.45,Plumbing & Heating
North West Leicestershire District Council,31UH,Housing Repairs,HRA Housing Repairs & Maintenance,HRAHRM,Sure Maintenance Ltd,A040460,08/02/2017,1340820,2090,Plumbing & Heating
North West Leicestershire District Council,31UH,Property Services,Property Facilities Management,PROPFM,John Merison BMC Ltd,A001092,08/02/2017,1340821,6920.42,Contract Payments (Other) Ext
North West Leicestershire District Council,31UH,Housing Repairs,HRA Housing Repairs & Maintenance,HRAHRM,Emperor Scaffolding Limited,A038405,08/02/2017,1340824,400,Hire Of Operational Equipment
North West Leicestershire District Council,31UH,Housing Repairs,HRA Housing Repairs & Maintenance,HRAHRM,Emperor Scaffolding Limited,A038405,08/02/2017,1340825,375,Hire Of Operational Equipment
North West Leicestershire District Council,31UH,Housing Repairs,HRA Housing Repairs & Maintenance,HRAHRM,Emperor Scaffolding Limited,A038405,08/02/2017,1340826,350,Hire Of Operational Equipment
North West Leicestershire District Council,31UH,Street Management,Environment Transport,ENOT,Certas Energy Uk Ltd,A043448,08/02/2017,1340829,17044.2,Fuel
North West Leicestershire District Council,31UH,Street Management,Environment Transport,ENOT,Certas Energy Uk Ltd,A043448,08/02/2017,1340830,485.7,Fuel
North West Leicestershire District Council,31UH,Housing Strategy,Community - Housing Strategy,HS,Abritas Limited,A037979,08/02/2017,1340833,255.06,Data Storage
North West Leicestershire District Council,31UH,Street Management,Environment Transport,ENOT,Masternaut UK Limited,A038358,08/02/2017,1340842,346.5,Operational Equipment
North West Leicestershire District Council,31UH,Street Management,Environment Transport,ENOT,Masternaut UK Limited,A038358,08/02/2017,1340843,346.5,Operational Equipment
North West Leicestershire District Council,31UH,Street Management,Environment Transport,ENOT,Partic Motor Spares Ltd,A042528,08/02/2017,1340844,410,Repairs - Parts
North West Leicestershire District Council,31UH,Property Services,Property Commercial Lettings,PROPCL,John Merison BMC Ltd,A001092,08/02/2017,1340846,2479.11,General Repairs
North West Leicestershire District Council,31UH,Environmental Health,Environmental Health & Licensing,EEHL,Idox Software Ltd,A034157,08/02/2017,1340848,2500,Training Course
North West Leicestershire District Council,31UH,Leisure Centres,Hood Park Leisure Centre,HPLC,Dura-Sport (Leisure Care) Ltd,A041815,15/02/2017,1340850,280,General Repairs
North West Leicestershire District Council,31UH,Property Services,Property Commercial Lettings,PROPCL,Coalville Cleaning Services,A003037,15/02/2017,1340851,250.4,Consumable Cleaning Materials/Hygiene
North West Leicestershire District Council,31UH,Information Technology,ICT Services,ICT,Phoenix Software Limited,A001298,08/02/2017,1340852,264,Computer Development
North West Leicestershire District Council,31UH,Housing Repairs,HRA Housing Repairs & Maintenance,HRAHRM,PPG Architectural Coatings Ltd,A000876,08/02/2017,1340853,2678.71,Internal Decorations
North West Leicestershire District Council,31UH,Planning & Development,Environment Community Planning,ECP,Jon Etchells Consulting Ltd,A029305,08/02/2017,1340854,5413.35,External Legal Fees & Advice
North West Leicestershire District Council,31UH,Planning & Development,Environment Community Planning,ECP,Mewies Engineering Consultants Ltd,A043524,08/02/2017,1340855,562.5,External Legal Fees & Advice
North West Leicestershire District Council,31UH,Planning & Development,Environment Community Planning,ECP,Valuation Office Agency,A034291,08/02/2017,1340856,2083.08,External Legal Fees & Advice
North West Leicestershire District Council,31UH,Planning & Development,Environment Community Planning,ECP,GL Hearn,A041191,08/02/2017,1340857,675,External Legal Fees & Advice
North West Leicestershire District Council,31UH,Housing,HRA Housing Management,HRAHM,Redacted-personal data,A043789,08/02/2017,1340858,280,Grants
North West Leicestershire District Council,31UH,Housing,HRA Housing Management,HRAHM,Redacted-personal data,A043791,08/02/2017,1340859,790,Homeless Prevention-Other Services
North West Leicestershire District Council,31UH,Leisure Centres,Hermitage Leisure Centre,HLC,Blaby District Council,A000180,08/02/2017,1340862,1000,Local Sports Alliance
North West Leicestershire District Council,31UH,Housing,HRA Housing Management,HRAHM,Leicestershire County Council,A000950,08/02/2017,1340878,5069.77,Contract Cleaning
North West Leicestershire District Council,31UH,Housing,HRA Housing Management,HRAHM,E.on,A000528,08/02/2017,1340887,420.94,Electricity
North West Leicestershire District Council,31UH,Housing,HRA Housing Management,HRAHM,E.on,A000528,08/02/2017,1340897,392.83,Electricity
North West Leicestershire District Council,31UH,Leisure Centres,Hermitage Bar & Catering,HLBC,Snackline Direct Ltd,A042489,08/02/2017,1340906,442.82,Vending Machine Provisions
North West Leicestershire District Council,31UH,Leisure Centres,Hermitage Bar & Catering,HLBC,Snackline Direct Ltd,A042489,08/02/2017,1340908,705.27,Catering Provisions
North West Leicestershire District Council,31UH,Leisure Centres,Hood Park Bar and Catering,HPBC,Snackline Direct Ltd,A042489,08/02/2017,1340912,1131.96,Vending Machine Provisions
North West Leicestershire District Council,31UH,Environmental Health,Environmental Health & Licensing,EEHL,ATCM  (Association of Town & City Management),A043780,08/02/2017,1340916,2400,Display Of Electoral Register
North West Leicestershire District Council,31UH,Street Management,Environment Waste Management,ENOWM,Apse,A018837,08/02/2017,1340917,597,Training Course
North West Leicestershire District Council,31UH,Street Management,Environment Parks,ENOP,Wicksteed Leisure Limited,A001789,22/02/2017,1340919,12000,Asset Protection
North West Leicestershire District Council,31UH,Leisure Centres,Hood Park Leisure Centre,HPLC,Southern Electric,A030266,08/02/2017,1340923,1580.34,Electricity
North West Leicestershire District Council,31UH,Leisure Centres,Hood Park Leisure Centre,HPLC,Southern Electric,A030266,08/02/2017,1340924,-1557.51,Electricity
North West Leicestershire District Council,31UH,Finance,Financial Planning,FINPLA,Kings Armoured Security Services Ltd,A004468,08/02/2017,1340925,1225.75,Cash in Transit Collection Service
North West Leicestershire District Council,31UH,Finance,Financial Planning,FINPLA,Kings Armoured Security Services Ltd,A004468,08/02/2017,1340926,1171.97,Cash in Transit Collection Service
North West Leicestershire District Council,31UH,Housing,HRA Housing Management,HRAHM,Castle Donington TARA,A043161,08/02/2017,1340928,1000,Grants
North West Leicestershire District Council,31UH,Legal & Democratic,Legal Services,LDLS,Mr Tim Sheppard,A040036,08/02/2017,1340934,9800,External Legal Fees & Advice
North West Leicestershire District Council,31UH,Street Management,Environment Parks,ENOP,London Fire Consultants & Design,A038408,08/02/2017,1340935,2500,General Repairs
North West Leicestershire District Council,31UH,Street Management,Environment Transport,ENOT,FAROL Limited,A041905,08/02/2017,1340937,2100,Agency Staff
North West Leicestershire District Council,31UH,Street Management,Environment Parks,ENOP,Groundsman Tools & Supplies,A030744,15/02/2017,1340938,305.88,Operational Equipment - Purchases
North West Leicestershire District Council,31UH,Street Management,Environment Parks,ENOP,Dunn & Co,A039625,08/02/2017,1340939,550,Asset Protection
North West Leicestershire District Council,31UH,Street Management,Environment Transport,ENOT,Calor Gas Limited,A032686,08/02/2017,1340940,1020.49,Gas
North West Leicestershire District Council,31UH,Housing,HRA Housing Management,HRAHM,Ward Recycling,A035471,08/02/2017,1340945,357.08,Tipping Charges
North West Leicestershire District Council,31UH,Corporate Director,Human Resources,HR,Leicestershire County Council Pension Fund,A028310,08/02/2017,1340949,2500,Consultants Fees
North West Leicestershire District Council,31UH,Corporate Director,Human Resources,HR,Penna,A043757,08/02/2017,1340950,6800,Employee Advertising
North West Leicestershire District Council,31UH,Housing Repairs,HRA Housing Repairs & Maintenance,HRAHRM,G Purchase Construction Ltd,A032830,08/02/2017,1341023,778.72,Housing Repairs
North West Leicestershire District Council,31UH,Housing Repairs,HRA Housing Repairs & Maintenance,HRAHRM,G Purchase Construction Ltd,A032830,08/02/2017,1341024,839.84,Housing repairs
North West Leicestershire District Council,31UH,Housing Repairs,HRA Housing Repairs & Maintenance,HRAHRM,G Purchase Construction Ltd,A032830,08/02/2017,1341025,405.16,Housing Repairs
North West Leicestershire District Council,31UH,Housing Repairs,HRA Housing Repairs & Maintenance,HRAHRM,G Purchase Construction Ltd,A032830,08/02/2017,1341026,460.56,Housing Repairs
North West Leicestershire District Council,31UH,Housing Repairs,HRA Housing Repairs & Maintenance,HRAHRM,G Purchase Construction Ltd,A032830,08/02/2017,1341027,492.9,Housing Repairs
North West Leicestershire District Council,31UH,Housing Repairs,HRA Housing Repairs & Maintenance,HRAHRM,G Purchase Construction Ltd,A032830,08/02/2017,1341028,402.69,Housing Repairs
North West Leicestershire District Council,31UH,Housing Repairs,HRA Housing Repairs & Maintenance,HRAHRM,G Purchase Construction Ltd,A032830,08/02/2017,1341031,529.77,Housing Repairs
North West Leicestershire District Council,31UH,Housing Repairs,HRA Housing Repairs & Maintenance,HRAHRM,National Grid Gas Plc,A032629,08/02/2017,1341032,362,Gas
North West Leicestershire District Council,31UH,Planning & Development,Environment Community Planning,ECP,Aquila Training Services Limited,A037151,08/02/2017,1341040,495,Training Course
North West Leicestershire District Council,31UH,Property Services,Property Facilities Management,PROPFM,Regarde Security Ltd,A013049,08/02/2017,1341041,544,Building Security
North West Leicestershire District Council,31UH,Street Management,Environment Transport,ENOT,D H Autobody Repairs,A043795,08/02/2017,1341066,604.85,Non Insurance Damage
North West Leicestershire District Council,31UH,Finance,Financial Planning,FINPLA,Leawood Builders,A042917,08/02/2017,1341067,1000,Building Work-Fire Damage 
North West Leicestershire District Council,31UH,Housing Repairs,HRA Housing Repairs & Maintenance,HRAHRM,Westbury Industrial Supplies Limited,A009933,08/02/2017,1341068,389.54,Protective Clothing
North West Leicestershire District Council,31UH,Housing Repairs,HRA Housing Repairs & Maintenance,HRAHRM,Westbury Industrial Supplies Limited,A009933,08/02/2017,1341069,387.32,Protective Clothing
North West Leicestershire District Council,31UH,Housing,HRA Older Persons Service,HRAOPS,Tunstall Healthcare (UK) Limited,A001701,08/02/2017,1341071,3840,Alarm System Telephones
North West Leicestershire District Council,31UH,Legal & Democratic,Civic Expenses,LDCE,Modern Mindset Ltd,A041118,15/02/2017,1341072,7010,Computing
North West Leicestershire District Council,31UH,Finance,Exchequer Services,EXCH,Backcare Solutions Ltd,A042250,07/02/2017,1341074,1783.6,Office Supplies
North West Leicestershire District Council,31UH,Finance,Exchequer Services,EXCH,ESPO,A000958,07/02/2017,1341079,16350.09,Gas
North West Leicestershire District Council,31UH,Corporate Director,Human Resources,HR,Fields of Learning,A030537,08/02/2017,1341080,3450,Training Course
North West Leicestershire District Council,31UH,Corporate Director,Human Resources,HR,Fields of Learning,A030537,08/02/2017,1341081,3290,Training Course
North West Leicestershire District Council,31UH,Leisure & Culture,Sport & Physical Activity,SPA,"Knight, Kavanagh & Page",A043152,08/02/2017,1341084,6180,Consultants Fees
North West Leicestershire District Council,31UH,Housing Repairs,HRA Housing Repairs & Maintenance,HRAHRM,National Grid Gas Distribution Ltd,A043808,08/02/2017,1341086,9570.67,Development work- Gas Disconnection
North West Leicestershire District Council,31UH,Street Management,Environment - Street Scene,ESS,Dynamic Development Services Limited,A043778,08/02/2017,1341088,384,Agency Staff
North West Leicestershire District Council,31UH,Street Management,Environment - Street Scene,ESS,Severn Trent Water Limited,A001468,08/02/2017,1341090,652.73,Water Charges (Metered)
North West Leicestershire District Council,31UH,Street Management,Environment Waste Management,ENOWM,Sita UK Ltd,A001108,08/02/2017,1341093,409.13,Tipping Charges
North West Leicestershire District Council,31UH,Planning & Development,Environment - Development Control,EDC,GL Hearn,A041191,08/02/2017,1341094,18186.03,External Legal Fees & Advice
North West Leicestershire District Council,31UH,Housing Repairs,HRA Housing Repairs & Maintenance,HRAHRM,Redacted-personal data,A043790,08/02/2017,1341095,845,Building repairs- shared costs
North West Leicestershire District Council,31UH,Housing,HRA Housing Management,HRAHM,Redacted-personal data,A043809,15/02/2017,1341097,280,Grants
North West Leicestershire District Council,31UH,Corporate Director,Human Resources,HR,Thomas International Uk Ltd,A001656,15/02/2017,1341100,5425,Personality Profiles
North West Leicestershire District Council,31UH,Environmental Health,Environmental Health & Licensing,EEHL,Eville And Jones Limited,A033670,15/02/2017,1341101,467.55,Vet Inspection
North West Leicestershire District Council,31UH,Housing,HRA Housing Management,HRAHM,Chartered Institute Of Housing,A000329,15/02/2017,1341104,1200,Training Course
North West Leicestershire District Council,31UH,Street Management,Environment Transport,ENOT,Data Academy Ltd,A043706,15/02/2017,1341106,1485,Training Course
North West Leicestershire District Council,31UH,Finance,Revenues,REVS,Hinckley & Bosworth Borough Council,A000770,22/02/2017,1341107,1706.25,Agency Staff
North West Leicestershire District Council,31UH,Environmental Health,Environmental Health & Licensing,EEHL,Nottingham City Council,A041558,15/02/2017,1341109,575,Training Course
North West Leicestershire District Council,31UH,Street Management,Environment Parks,ENOP,Tudor UK Ltd  (trading as Tudor Environmental),A043777,15/02/2017,1341110,874.46,Operational Equipment - Purchases
North West Leicestershire District Council,31UH,Street Management,Environment Transport,ENOT,Safety-Kleen Uk Ltd,A001431,15/02/2017,1341111,309.84,Hire Of Operational Equipment
North West Leicestershire District Council,31UH,Planning & Development,Environment Community Planning,ECP,Broadland Guarding Services Ltd,A042635,22/02/2017,1341112,4151.66,Agency Staff
North West Leicestershire District Council,31UH,Housing Repairs,HRA Housing Repairs & Maintenance,HRAHRM,Cresswell Property Surveys,A022373,15/02/2017,1341113,360,Legal & Professional Services
North West Leicestershire District Council,31UH,Finance,Exchequer Services,EXCH,Comensura Limited,A036958,15/02/2017,1341114,14105.11,Agency Staff
North West Leicestershire District Council,31UH,Street Management,Environment Waste Management,ENOWM,London Fire Consultants & Design,A038408,15/02/2017,1341116,450,Licences
North West Leicestershire District Council,31UH,Street Management,Environment - Street Scene,ESS,London Fire Consultants & Design,A038408,15/02/2017,1341117,450,Health & Safety Repairs/Maintenance
North West Leicestershire District Council,31UH,Property Services,Property Facilities Management,PROPFM,John Merison BMC Ltd,A001092,15/02/2017,1341118,432.56,Asset Protection
North West Leicestershire District Council,31UH,Legal & Democratic,Legal Services,LDLS,Marrons Shakespeares,A041538,15/02/2017,1341124,6711.2,External Legal Fees & Advice
North West Leicestershire District Council,31UH,Housing Repairs,HRA Housing Repairs & Maintenance,HRAHRM,Sure Maintenance Ltd,A040460,15/02/2017,1341125,750,Plumbing & Heating
North West Leicestershire District Council,31UH,Information Technology,ICT Services,ICT,Virgin Media Business,A008908,15/02/2017,1341126,3209.03,Admin Equipment - Maintenance
North West Leicestershire District Council,31UH,Information Technology,ICT Services,ICT,Premier Paper Group,A042438,15/02/2017,1341134,441.2,Consumable Materials
North West Leicestershire District Council,31UH,Information Technology,ICT Services,ICT,Virgin Media Business,A035373,15/02/2017,1341135,313.53,Computing
North West Leicestershire District Council,31UH,Finance,Financial Planning,FINPLA,Zurich Insurance Company,A001836,15/02/2017,1341136,2500,Insurances
North West Leicestershire District Council,31UH,Legal & Democratic,Legal Services,LDLS,Delib,A039059,15/02/2017,1341138,5995,Software Licences
North West Leicestershire District Council,31UH,Street Management,Environment Transport,ENOT,Westbury Industrial Supplies Limited,A009933,15/02/2017,1341139,278.84,Protective Clothing
North West Leicestershire District Council,31UH,Leisure Centres,Hermitage Leisure Centre,HLC,Alpha Power Cleaners,A035656,15/02/2017,1341145,250.18,General Repairs
North West Leicestershire District Council,31UH,Street Management,Environment Transport,ENOT,O Kay Engineering Services Ltd,A041943,15/02/2017,1341149,295,Operational Equipment
North West Leicestershire District Council,31UH,Information Technology,ICT Services,ICT,Geoff Smith Associates Ltd,A041931,22/02/2017,1341150,532.31,Computing
North West Leicestershire District Council,31UH,Communications,Corporate - Customer Services,CS,Neopost Limited,A000079,15/02/2017,1341158,4000,Postages
North West Leicestershire District Council,31UH,Housing Repairs,HRA Housing Repairs & Maintenance,HRAHRM,G Purchase Construction Ltd,A032830,15/02/2017,1341199,327.78,Housing Repairs
North West Leicestershire District Council,31UH,Housing Repairs,HRA Housing Repairs & Maintenance,HRAHRM,G Purchase Construction Ltd,A032830,15/02/2017,1341203,327.78,Housing Repairs
North West Leicestershire District Council,31UH,Finance,Financial Planning,FINPLA,The Office of the Police and Crime Commissioner for Leicestershire,A007096,09/02/2017,1341213,583902.21,Precept
North West Leicestershire District Council,31UH,Finance,Financial Planning,FINPLA,"Leicester, Leicestershire &",A028339,09/02/2017,1341214,195995,Precept
North West Leicestershire District Council,31UH,Finance,Financial Planning,FINPLA,Department for Communities & Local Government,A028518,09/02/2017,1341215,1900365,Subsidy Receipts & Repayments
North West Leicestershire District Council,31UH,Legal & Democratic,Legal Services,LDLS,HMCTS,A033955,09/02/2017,1341218,1086,Legal & Professional Services
North West Leicestershire District Council,31UH,Finance,Financial Planning,FINPLA,Leicestershire County Council,A000950,09/02/2017,1341219,1755846,Precept
North West Leicestershire District Council,31UH,Finance,Financial Planning,FINPLA,Leicestershire County Council,A000950,09/02/2017,1341220,3582697,Precept
North West Leicestershire District Council,31UH,Housing,HRA Housing Management,HRAHM,HMCTS,A033955,09/02/2017,1341221,2759,Legal & Professional Services
North West Leicestershire District Council,31UH,Finance,Financial Planning,FINPLA,EEPKLULL,A043811,09/02/2017,1341222,84690.41,Policy Lending
North West Leicestershire District Council,31UH,Finance,Exchequer Services,EXCH,H M Land Registry,A000713,09/02/2017,1341224,485,Land Registry Search Fees
North West Leicestershire District Council,31UH,Property Services,Property Commercial Lettings,PROPCL,GCS Communications,A015548,15/02/2017,1341226,410,Telephones
North West Leicestershire District Council,31UH,Housing,HRA Performance & Business Support,HRAPBS,Michael Page International Recruitment Ltd,A041893,15/02/2017,1341227,1750,Agency Staff
North West Leicestershire District Council,31UH,Housing Repairs,HRA Housing Repairs & Maintenance,HRAHRM,Kier Services Maintenance East Ltd,A039980,15/02/2017,1341228,27577.73,Decent Homes
North West Leicestershire District Council,31UH,Corporate Director,Human Resources,HR,Penna,A043757,15/02/2017,1341229,4650,Employee Advertising
North West Leicestershire District Council,31UH,Housing Repairs,HRA Housing Repairs & Maintenance,HRAHRM,Kier Services Maintenance East Ltd,A039980,15/02/2017,1341238,795,Decent Homes
North West Leicestershire District Council,31UH,Housing Repairs,HRA Housing Repairs & Maintenance,HRAHRM,Kier Services Maintenance East Ltd,A039980,15/02/2017,1341239,19797.88,Decent Homes
North West Leicestershire District Council,31UH,Housing Repairs,HRA Housing Repairs & Maintenance,HRAHRM,Lovell Partnerships Ltd,A039973,15/02/2017,1341240,334253.31,Decent Homes
North West Leicestershire District Council,31UH,Leisure Centres,Hood Park Leisure Centre,HPLC,Leicestershire County Council,A027423,15/02/2017,1341242,912.73,Routine Ground Maintenance
North West Leicestershire District Council,31UH,Corporate Director,Human Resources,HR,HS Direct Ltd,A028815,15/02/2017,1341243,826.9,Operational Equipment
North West Leicestershire District Council,31UH,Planning & Development,Environment - Development Control,EDC,Euro RSCG People T/A Havas People Ltd,A001395,15/02/2017,1341246,1307.84,Advertising
North West Leicestershire District Council,31UH,Planning & Development,Building Control,EBC,Leicestershire County Council,A027423,22/02/2017,1341251,2583,Search Fees - L.C.C.
North West Leicestershire District Council,31UH,Information Technology,ICT Services,ICT,Tunstall Healthcare (UK) Limited,A001701,15/02/2017,1341253,450,Phone system & network equipment
North West Leicestershire District Council,31UH,Leisure & Culture,Sport & Physical Activity,SPA,King Edward VII Science & Sport,A029490,15/02/2017,1341255,1349.65,Local Sports Alliance
North West Leicestershire District Council,31UH,Street Management,Environment Transport,ENOT,Terberg Matec UK Limited,A001647,15/02/2017,1341262,672.53,Non Scheduled Maintenance - Parts
North West Leicestershire District Council,31UH,Housing Strategy,Community - Housing Strategy,HS,Redacted-personal data,A043812,15/02/2017,1341263,475,Rent Deposit Scheme
North West Leicestershire District Council,31UH,Housing Strategy,Community - Housing Strategy,HS,Redacted-personal data,A039006,15/02/2017,1341264,425,Rent Deposit Scheme
North West Leicestershire District Council,31UH,Information Technology,ICT Services,ICT,Idox Software Ltd,A034157,15/02/2017,1341266,1900,Admin Equipment - Purchased & Recharged
North West Leicestershire District Council,31UH,Leisure Centres,Hood Park Leisure Centre,HPLC,Dura-Sport (Leisure Care) Ltd,A041815,22/02/2017,1341267,350,General Repairs
North West Leicestershire District Council,31UH,Finance,Financial Planning,FINPLA,Leicestershire County Council,A000950,15/02/2017,1341270,6032.41,PCN LEVY
North West Leicestershire District Council,31UH,Street Management,Environment Transport,ENOT,Boc Limited,A000193,15/02/2017,1341273,279.55,Operational Equipment - Purchases
North West Leicestershire District Council,31UH,Leisure Centres,Hood Park Bar and Catering,HPBC,Britvic Soft Drinks Limited,A000234,15/02/2017,1341275,389.16,Bar Provisions
North West Leicestershire District Council,31UH,Leisure Centres,Hood Park Leisure Centre,HPLC,Admiral Cleaning Supplies Ltd,A040930,15/02/2017,1341278,376.22,Consumable Cleaning Materials/Hygiene
North West Leicestershire District Council,31UH,Leisure Centres,Hermitage Leisure Centre,HLC,T Denman & Sons (Melton Mowbray) Ltd,A030887,15/02/2017,1341290,835.95,General Repairs
North West Leicestershire District Council,31UH,Legal & Democratic,Legal Services,LDLS,Anthony Collins Solicitors,A027936,15/02/2017,1341295,693,External Legal Fees & Advice
North West Leicestershire District Council,31UH,Environmental Health,Environmental Services,EES,College Garth Boarding Kennels,A000385,15/02/2017,1341296,2019.5,Stray Dog Service
North West Leicestershire District Council,31UH,Housing Repairs,HRA Housing Repairs & Maintenance,HRAHRM,Sure Maintenance Ltd,A040460,15/02/2017,1341297,9631.68,Plumbing & Heating
North West Leicestershire District Council,31UH,Housing Repairs,HRA Housing Repairs & Maintenance,HRAHRM,Sure Maintenance Ltd,A040460,15/02/2017,1341298,5220,Plumbing & Heating
North West Leicestershire District Council,31UH,Environmental Health,Environmental Services,EES,John Merison BMC Ltd,A001092,15/02/2017,1341299,14682,Grants
North West Leicestershire District Council,31UH,Housing,HRA Housing Management,HRAHM,Euro RSCG People T/A Havas People Ltd,A001395,15/02/2017,1341301,1166.51,Legal & Professional Services
North West Leicestershire District Council,31UH,Leisure Centres,Hood Park Bar and Catering,HPBC,Snackline Direct Ltd,A042489,15/02/2017,1341306,357.85,Vending Machine Provisions
North West Leicestershire District Council,31UH,Finance,Housing Benefits,BENS,Morgan Hunt Public Sector Ltd,A033787,15/02/2017,1341310,888,Agency Staff
North West Leicestershire District Council,31UH,Finance,Housing Benefits,BENS,Morgan Hunt Public Sector Ltd,A033787,15/02/2017,1341311,848.16,Agency Staff
North West Leicestershire District Council,31UH,Housing Repairs,HRA Housing Repairs & Maintenance,HRAHRM,Hays Human Resources,A024378,15/02/2017,1341312,1367.4,Agency Staff
North West Leicestershire District Council,31UH,Housing Repairs,HRA Housing Repairs & Maintenance,HRAHRM,Hays Human Resources,A024378,15/02/2017,1341313,1109.82,Agency Staff
North West Leicestershire District Council,31UH,Housing Repairs,HRA Housing Repairs & Maintenance,HRAHRM,Hays Human Resources,A024378,15/02/2017,1341314,572.4,Agency Staff
North West Leicestershire District Council,31UH,Housing Repairs,HRA Housing Repairs & Maintenance,HRAHRM,Hays Human Resources,A024378,15/02/2017,1341315,1049.4,Agency Staff
North West Leicestershire District Council,31UH,Housing Repairs,HRA Housing Repairs & Maintenance,HRAHRM,Hays Human Resources,A024378,15/02/2017,1341316,1332.42,Agency Staff
North West Leicestershire District Council,31UH,Housing,HRA Performance & Business Support,HRAPBS,Madcowinternet Ltd,A043685,15/02/2017,1341317,900,Computing
North West Leicestershire District Council,31UH,Corporate Director,Human Resources,HR,Libby Carter Limited,A033121,15/02/2017,1341319,2187,Consultants Fees
North West Leicestershire District Council,31UH,Planning & Development,Building Control,EBC,Leicestershire County Council,A027423,15/02/2017,1341320,2240,Search Fees - L.C.C.
North West Leicestershire District Council,31UH,Leisure Centres,Hood Park Leisure Centre,HPLC,Airquee Ltd,A028733,15/02/2017,1341419,2162,Operational Equipment
North West Leicestershire District Council,31UH,Information Technology,ICT Services,ICT,EE Ltd (Equipment),A043413,15/02/2017,1341420,1195,Operational Equipment
North West Leicestershire District Council,31UH,Housing,HRA Housing Management,HRAHM,National Grid Gas Distribution Ltd,A043808,15/02/2017,1341422,9570.67,Development work- Gas Disconnection
North West Leicestershire District Council,31UH,Leisure Centres,Hermitage Leisure Centre,HLC,Redacted-personal data,A042974,15/02/2017,1341423,433.48,FAME classes
North West Leicestershire District Council,31UH,Street Management,Environment Transport,ENOT,S & B Tyres Limited,A034071,15/02/2017,1341431,500,Transport Costs - Tyres
North West Leicestershire District Council,31UH,Street Management,Environment Transport,ENOT,Malvern Tyres,A035175,15/02/2017,1341432,288,Transport Costs - Tyres
North West Leicestershire District Council,31UH,Neighbourhoods & Communities,N & C Neighbourhoods,NACN,Civil Service Retirement Fellowship,A029850,15/02/2017,1341445,250,Grants
North West Leicestershire District Council,31UH,Housing,HRA Housing Management,HRAHM,PPG Architectural Coatings Ltd,A000876,15/02/2017,1341446,2594.14,Internal Decorations
North West Leicestershire District Council,31UH,Housing,HRA Performance & Business Support,HRAPBS,Alysium Consulting,A043813,15/02/2017,1341459,4180,Computing
North West Leicestershire District Council,31UH,Street Management,Environment Transport,ENOT,Ford & Slater Group Ltd,A000625,15/02/2017,1341460,352.14,Repairs - Parts
North West Leicestershire District Council,31UH,Street Management,Environment Transport,ENOT,Spaldings (UK) Limited,A001540,15/02/2017,1341462,527.66,Repairs - Parts
North West Leicestershire District Council,31UH,Planning & Development,Environment Community Planning,ECP,Leicestershire & Rutland Association,A042581,15/02/2017,1341464,250,Training Course
North West Leicestershire District Council,31UH,Property Services,Property Facilities Management,PROPFM,John Merison BMC Ltd,A001092,15/02/2017,1341465,306.55,General Repairs
North West Leicestershire District Council,31UH,Information Technology,ICT Services,ICT,Orange Plc,A018592,15/02/2017,1341471,1802.85,Mobile Telephones
North West Leicestershire District Council,31UH,Housing,HRA Housing Management,HRAHM,Connect In,A043823,15/02/2017,1341472,1650,Events Equipment
North West Leicestershire District Council,31UH,Housing Repairs,HRA Housing Repairs & Maintenance,HRAHRM,M3 Housing Limited,A032953,15/02/2017,1341476,507.5,Computing
North West Leicestershire District Council,31UH,Housing,HRA Housing Management,HRAHM,Leicestershire County Council,A000950,15/02/2017,1341477,5434.88,Contract Cleaning
North West Leicestershire District Council,31UH,Street Management,Environment Transport,ENOT,Johnston Sweepers Ltd,A039355,15/02/2017,1341478,590.24,Non Scheduled Maintenance - Parts
North West Leicestershire District Council,31UH,Legal & Democratic,Legal Services,LDLS,Martin Lee & Co,A030613,15/02/2017,1341480,826,Legal & Professional Services
North West Leicestershire District Council,31UH,Property Services,Property Commercial Lettings,PROPCL,Geze Uk Limited,A023130,15/02/2017,1341481,2500.87,General Repairs
North West Leicestershire District Council,31UH,Chief Exec,Chief Executive,CHEX,Sharp Planning Plus Ltd,A041332,15/02/2017,1341482,2365.6,External Legal Fees & Advice
North West Leicestershire District Council,31UH,Housing Repairs,HRA Housing Repairs & Maintenance,HRAHRM,Orbis Property Protection Ltd,A028149,15/02/2017,1341484,1624,Housing Repairs
North West Leicestershire District Council,31UH,Housing Repairs,HRA Housing Repairs & Maintenance,HRAHRM,Orbis Property Protection Ltd,A028149,15/02/2017,1341494,405,Housing Repairs
North West Leicestershire District Council,31UH,Housing Repairs,HRA Housing Repairs & Maintenance,HRAHRM,Orbis Property Protection Ltd,A028149,15/02/2017,1341495,673,Housing Repairs
North West Leicestershire District Council,31UH,Housing Repairs,HRA Housing Repairs & Maintenance,HRAHRM,Orbis Property Protection Ltd,A028149,15/02/2017,1341496,839,Housing Repairs
North West Leicestershire District Council,31UH,Housing Repairs,HRA Housing Repairs & Maintenance,HRAHRM,Aspect Contracts Limited,A041868,15/02/2017,1341502,350,Contract Payments (Dws) Ext
North West Leicestershire District Council,31UH,Housing Repairs,HRA Housing Repairs & Maintenance,HRAHRM,Aspect Contracts Limited,A041868,15/02/2017,1341503,370,Contract Payments (Dws) Ext
North West Leicestershire District Council,31UH,Street Management,Environment - Street Scene,ESS,Dynamic Development Services Limited,A043778,22/02/2017,1341504,998,Agency Staff
North West Leicestershire District Council,31UH,Information Technology,ICT Services,ICT,Centreprise International Ltd,A043431,15/02/2017,1341509,1445,Operational Equipment
North West Leicestershire District Council,31UH,Housing,HRA Housing Management,HRAHM,Redacted-personal data,A043826,15/02/2017,1341510,250,Under Occupancy Incentives
North West Leicestershire District Council,31UH,Street Management,Environment - Street Scene,ESS,John Merison BMC Ltd,A001092,15/02/2017,1341511,499.21,General Repairs
North West Leicestershire District Council,31UH,Finance,Housing Benefits,BENS,Morgan Hunt Public Sector Ltd,A033787,15/02/2017,1341512,669.84,Agency Staff
North West Leicestershire District Council,31UH,Housing,HRA Housing Management,HRAHM,Western Power Distribution,A038499,15/02/2017,1341514,1561.81,Legal & Professional Services
North West Leicestershire District Council,31UH,Information Technology,ICT Services,ICT,Orange Plc,A018592,15/02/2017,1341516,1089.51,Data Transfer
North West Leicestershire District Council,31UH,Street Management,Environment Waste Management,ENOWM,Groundsman Tools & Supplies,A030744,15/02/2017,1341518,1822,Operational Equipment
North West Leicestershire District Council,31UH,Planning & Development,Environment Community Planning,ECP,Nettitude Limited,A043672,22/02/2017,1341519,4628,CDRP - SAFER FUNDING
North West Leicestershire District Council,31UH,Street Management,Environment Transport,ENOT,J F Lloyd & Sons,A000991,15/02/2017,1341521,300,Hire Of Operational Equipment
North West Leicestershire District Council,31UH,Street Management,Environment Transport,ENOT,Post Office Limited,A008559,15/02/2017,1341531,460,Licences - Road Fund Licence
North West Leicestershire District Council,31UH,Finance,Financial Planning,FINPLA,Leicestershire County Council,A000950,15/02/2017,1341532,1000000,Section 106 Highways Contribution
North West Leicestershire District Council,31UH,Finance,Financial Planning,FINPLA,Leicestershire County Council,A000950,15/02/2017,1341533,412829.05,Section 106 Highways Contribution
North West Leicestershire District Council,31UH,Finance,Financial Planning,FINPLA,Leicestershire County Council,A000950,15/02/2017,1341534,577071,Section 106 Highways Contribution
North West Leicestershire District Council,31UH,Finance,Exchequer Services,EXCH,Comensura Limited,A036958,15/02/2017,1341535,20755.6,Agency Staff
North West Leicestershire District Council,31UH,Street Management,Environment - Street Scene,ESS,The Royal Hotel,A001421,15/02/2017,1341538,9824.6,Private Owners Car Park Income
North West Leicestershire District Council,31UH,Street Management,Environment - Street Scene,ESS,Severn Trent Water Limited,A001468,22/02/2017,1341539,464.1,Water Charges (Metered)
North West Leicestershire District Council,31UH,Information Technology,ICT Services,ICT,Insight Uk,A021505,22/02/2017,1341547,296.8,Phone system & network equipment
North West Leicestershire District Council,31UH,Street Management,Environment Transport,ENOT,Salop Mechanical Limited,A042877,22/02/2017,1341553,645,General Repairs
North West Leicestershire District Council,31UH,Finance,Housing Benefits,BENS,Morgan Hunt Public Sector Ltd,A033787,22/02/2017,1341556,861.84,Agency Staff
North West Leicestershire District Council,31UH,Finance,Housing Benefits,BENS,Morgan Hunt Public Sector Ltd,A033787,22/02/2017,1341557,888,Agency Staff
North West Leicestershire District Council,31UH,Finance,Financial Planning,FINPLA,Hinckley & Bosworth Borough Council,A000770,22/02/2017,1341566,34233,Shared Revs & Bens Partnership costs
North West Leicestershire District Council,31UH,Finance,Financial Planning,FINPLA,Cabinet Office,A043533,22/02/2017,1341567,2200,National Fraud Initiative
North West Leicestershire District Council,31UH,Finance,Financial Planning,FINPLA,KPMG LLP,A035156,22/02/2017,1341568,3000,Audit Commision Fees - Grant Claims
North West Leicestershire District Council,31UH,Finance,Financial Planning,FINPLA,Barclays Mercantile Business,A003940,16/02/2017,1341570,95168.81,Policy Lending
North West Leicestershire District Council,31UH,Corporate Director,Human Resources,HR,The Disclosure & Barring Service,A027625,16/02/2017,1341572,528,Criminal Records Bureau Checks
North West Leicestershire District Council,31UH,Corporate Director,Human Resources,HR,The Disclosure & Barring Service,A027625,16/02/2017,1341573,704,Criminal Records Bureau Checks
North West Leicestershire District Council,31UH,Corporate Director,Human Resources,HR,The Disclosure & Barring Service,A027625,16/02/2017,1341574,1106,Criminal Records Bureau Checks
North West Leicestershire District Council,31UH,Corporate Director,Human Resources,HR,The Disclosure & Barring Service,A027625,16/02/2017,1341575,702,Criminal Records Bureau Checks
North West Leicestershire District Council,31UH,Corporate Director,Human Resources,HR,The Disclosure & Barring Service,A027625,16/02/2017,1341576,404,Criminal Records Bureau Checks
North West Leicestershire District Council,31UH,Corporate Director,Human Resources,HR,The Disclosure & Barring Service,A027625,16/02/2017,1341577,730,Criminal Records Bureau Checks
North West Leicestershire District Council,31UH,Corporate Director,Human Resources,HR,PES Limited,A035521,16/02/2017,1341580,6129,Child Care Vouchers
North West Leicestershire District Council,31UH,Planning & Development,Environment Community Planning,ECP,Leicestershire County Council,A000950,01/03/2017,1341591,1500,Analytical Support
North West Leicestershire District Council,31UH,Information Technology,ICT Services,ICT,Premier Paper Group,A042438,22/02/2017,1341592,360.96,Consumable Materials
North West Leicestershire District Council,31UH,Street Management,Environment - Street Scene,ESS,Euro RSCG People T/A Havas People Ltd,A001395,22/02/2017,1341596,486.24,Contract Payments (Other) Ext
North West Leicestershire District Council,31UH,Leisure Centres,Hermitage Leisure Centre,HLC,Measham Leisure Centre,A027454,22/02/2017,1341597,2149.91,Measham LC Lifestyle DD
North West Leicestershire District Council,31UH,Leisure Centres,Hermitage Bar & Catering,HLBC,LWC - Birmingham,A039915,22/02/2017,1341604,267.63,Bar Provisions
North West Leicestershire District Council,31UH,Leisure Centres,Castle Donington Community College,CDCC,Elliott Group Limited,A005413,22/02/2017,1341610,522.58,Secure Storage
North West Leicestershire District Council,31UH,Street Management,Environment Transport,ENOT,TECSERV UK LIMITED,A028261,22/02/2017,1341612,340,General Repairs
North West Leicestershire District Council,31UH,Leisure Centres,Hermitage Leisure Centre,HLC,Crestline Printers Limited,A000434,22/02/2017,1341614,449,Publicity & Promotion
North West Leicestershire District Council,31UH,Street Management,Environment Waste Management,ENOWM,Hinckley & Bosworth Borough Council,A000770,22/02/2017,1341617,777.71,Hire Of Operational Equipment
North West Leicestershire District Council,31UH,Information Technology,ICT Services,ICT,ACS Systems (UK) Ltd T/a ACS Office Solutions,A043447,22/02/2017,1341620,1180,Admin Equipment - Purchased & Recharged
North West Leicestershire District Council,31UH,Planning & Development,Environment Planning Policy,EPP,Harborough District Council,A008631,22/02/2017,1341621,1229.16,Local Development Framework
North West Leicestershire District Council,31UH,Street Management,Environment Transport,ENOT,Regarde Security Ltd,A013049,22/02/2017,1341622,272,Security Services
North West Leicestershire District Council,31UH,Leisure Centres,Hermitage Leisure Centre,HLC,ESPO,A000958,22/02/2017,1341626,331,Operational Equipment
North West Leicestershire District Council,31UH,Neighbourhoods & Communities,N & C Neighbourhoods,NACN,Ashby De La Zouch Town Council,A000091,22/02/2017,1341629,30000,Ashby Neighbourhood Plan
North West Leicestershire District Council,31UH,Housing Repairs,HRA Housing Repairs & Maintenance,HRAHRM,Emperor Scaffolding Limited,A038405,22/02/2017,1341634,350,Hire Of Operational Equipment
North West Leicestershire District Council,31UH,Housing Repairs,HRA Housing Repairs & Maintenance,HRAHRM,Emperor Scaffolding Limited,A038405,22/02/2017,1341635,450,Hire Of Operational Equipment
North West Leicestershire District Council,31UH,Housing Repairs,HRA Housing Repairs & Maintenance,HRAHRM,Emperor Scaffolding Limited,A038405,22/02/2017,1341636,375,Hire Of Operational Equipment
North West Leicestershire District Council,31UH,Finance,Exchequer Services,EXCH,Selima Limited,A010859,22/02/2017,1341637,2299.89,Computing
North West Leicestershire District Council,31UH,Neighbourhoods & Communities,N & C Neighbourhoods,NACN,Heather Parish Council,A000749,22/02/2017,1341638,5000,Community Initiatives
North West Leicestershire District Council,31UH,Communications,Corporate - Customer Services,CS,Neopost Limited,A000079,22/02/2017,1341639,3000,Postages
North West Leicestershire District Council,31UH,Property Services,Property Commercial Lettings,PROPCL,British Telecommunications Plc,A000233,22/02/2017,1341645,582.76,Telephones
North West Leicestershire District Council,31UH,Planning & Development,Environment Planning Policy,EPP,Carmel Edwards T/A CP Solutions,A043365,22/02/2017,1341647,2214,Local Development Framework
North West Leicestershire District Council,31UH,Housing,HRA Performance & Business Support,HRAPBS,Michael Page International Recruitment Ltd,A041893,22/02/2017,1341648,1750,Agency Staff
North West Leicestershire District Council,31UH,Housing,HRA Performance & Business Support,HRAPBS,Michael Page International Recruitment Ltd,A041893,22/02/2017,1341649,1462,Agency Staff
North West Leicestershire District Council,31UH,Housing,HRA Performance & Business Support,HRAPBS,Michael Page International Recruitment Ltd,A041893,22/02/2017,1341650,1360,Agency Staff
North West Leicestershire District Council,31UH,Housing,HRA Performance & Business Support,HRAPBS,Michael Page International Recruitment Ltd,A041893,22/02/2017,1341651,6970,Agency Staff
North West Leicestershire District Council,31UH,Communications,Corporate - Customer Services,CS,Freedom Communications (UK) Ltd,A032826,22/02/2017,1341656,10605,Computing
North West Leicestershire District Council,31UH,Planning & Development,Environment Community Planning,ECP,Freedom Programme Ltd,A042643,22/02/2017,1341659,262.5,Community Safety
North West Leicestershire District Council,31UH,Planning & Development,Environment Community Planning,ECP,Leicestershire County Council,A036728,22/02/2017,1341660,30000,Supporting Families
North West Leicestershire District Council,31UH,Planning & Development,Environment Community Planning,ECP,Christine Graham Consultancy,A043517,22/02/2017,1341754,2700,Training Course
North West Leicestershire District Council,31UH,Leisure Centres,Hermitage Leisure Centre,HLC,Security Alert UK,A037299,22/02/2017,1341772,810,Security Services
North West Leicestershire District Council,31UH,Street Management,Environment - Street Scene,ESS,Keep Britain Tidy,A025681,22/02/2017,1341779,1995,Subscriptions
North West Leicestershire District Council,31UH,Finance,Exchequer Services,EXCH,Insight Uk,A021505,22/02/2017,1341782,3978,Contract Payments (Other) Ext
North West Leicestershire District Council,31UH,Finance,Exchequer Services,EXCH,Insight Uk,A021505,22/02/2017,1341783,369.09,Contract Payments (Other) Ext
North West Leicestershire District Council,31UH,Leisure Centres,Hermitage Bar & Catering,HLBC,Snackline Direct Ltd,A042489,22/02/2017,1341799,825.81,Vending Machine Provisions
North West Leicestershire District Council,31UH,Legal & Democratic,Legal Services,LDLS,Martin Lee & Co,A030613,22/02/2017,1341801,915,External Legal Fees & Advice
North West Leicestershire District Council,31UH,Housing Repairs,HRA Housing Repairs & Maintenance,HRAHRM,Orbis Property Protection Ltd,A028149,22/02/2017,1341815,260,Housing Repairs
North West Leicestershire District Council,31UH,Housing Repairs,HRA Housing Repairs & Maintenance,HRAHRM,Orbis Property Protection Ltd,A028149,22/02/2017,1341816,425,Housing Repairs
North West Leicestershire District Council,31UH,Housing Repairs,HRA Housing Repairs & Maintenance,HRAHRM,Orbis Property Protection Ltd,A028149,22/02/2017,1341821,285,Housing Repairs
North West Leicestershire District Council,31UH,Housing Repairs,HRA Housing Repairs & Maintenance,HRAHRM,Orbis Property Protection Ltd,A028149,22/02/2017,1341824,325,Housing Repairs
North West Leicestershire District Council,31UH,Housing,HRA Performance & Business Support,HRAPBS,Capita Business Services Ltd,A002968,26/04/2017,1341827,-2872,Computing
North West Leicestershire District Council,31UH,Housing Repairs,HRA Housing Repairs & Maintenance,HRAHRM,Cresswell Property Surveys,A022373,22/02/2017,1341836,275,Legal & Professional Services
North West Leicestershire District Council,31UH,Housing Repairs,HRA Housing Repairs & Maintenance,HRAHRM,Lovell Partnerships Ltd,A039973,22/02/2017,1341839,3603.16,Decent Homes
North West Leicestershire District Council,31UH,Housing Repairs,HRA Housing Repairs & Maintenance,HRAHRM,Lovell Partnerships Ltd,A039973,22/02/2017,1341840,4784.04,Decent Homes
North West Leicestershire District Council,31UH,Housing Repairs,HRA Housing Repairs & Maintenance,HRAHRM,Lovell Partnerships Ltd,A039973,22/02/2017,1341841,4784.04,Decent Homes
North West Leicestershire District Council,31UH,Housing Repairs,HRA Housing Repairs & Maintenance,HRAHRM,Lovell Partnerships Ltd,A039973,22/02/2017,1341842,4784.04,Decent Homes
North West Leicestershire District Council,31UH,Housing Repairs,HRA Housing Repairs & Maintenance,HRAHRM,Lovell Partnerships Ltd,A039973,22/02/2017,1341843,2502.58,Decent Homes
North West Leicestershire District Council,31UH,Housing Repairs,HRA Housing Repairs & Maintenance,HRAHRM,Lovell Partnerships Ltd,A039973,22/02/2017,1341844,514.95,Decent Homes
North West Leicestershire District Council,31UH,Housing Repairs,HRA Housing Repairs & Maintenance,HRAHRM,Lovell Partnerships Ltd,A039973,22/02/2017,1341845,4185.13,Decent Homes
North West Leicestershire District Council,31UH,Housing Repairs,HRA Housing Repairs & Maintenance,HRAHRM,Lovell Partnerships Ltd,A039973,22/02/2017,1341846,4784.04,Decent Homes
North West Leicestershire District Council,31UH,Housing Repairs,HRA Housing Repairs & Maintenance,HRAHRM,Lovell Partnerships Ltd,A039973,22/02/2017,1341847,332.23,Decent Homes
North West Leicestershire District Council,31UH,Housing Repairs,HRA Housing Repairs & Maintenance,HRAHRM,Orbis Property Protection Ltd,A028149,22/02/2017,1341848,250,Housing Repairs
North West Leicestershire District Council,31UH,Housing Repairs,HRA Housing Repairs & Maintenance,HRAHRM,Orbis Property Protection Ltd,A028149,22/02/2017,1341850,325,Void Property Clearance Services
North West Leicestershire District Council,31UH,Housing Repairs,HRA Housing Repairs & Maintenance,HRAHRM,Orbis Property Protection Ltd,A028149,22/02/2017,1341851,260,Housing Repairs
North West Leicestershire District Council,31UH,Housing Repairs,HRA Housing Repairs & Maintenance,HRAHRM,Orbis Property Protection Ltd,A028149,22/02/2017,1341857,555,Housing Repairs
North West Leicestershire District Council,31UH,Housing Repairs,HRA Housing Repairs & Maintenance,HRAHRM,Lovell Partnerships Ltd,A039973,22/02/2017,1341859,1270.87,Decent Homes
North West Leicestershire District Council,31UH,Housing Repairs,HRA Housing Repairs & Maintenance,HRAHRM,Kier Services Maintenance East Ltd,A039980,22/02/2017,1341860,1771.41,Housing Repairs
North West Leicestershire District Council,31UH,Housing Repairs,HRA Housing Repairs & Maintenance,HRAHRM,Kier Services Maintenance East Ltd,A039980,22/02/2017,1341861,1771.41,Housing Repairs
North West Leicestershire District Council,31UH,Housing Repairs,HRA Housing Repairs & Maintenance,HRAHRM,Kier Services Maintenance East Ltd,A039980,22/02/2017,1341862,1771.41,Housing Repairs
North West Leicestershire District Council,31UH,Housing Repairs,HRA Housing Repairs & Maintenance,HRAHRM,Kier Services Maintenance East Ltd,A039980,22/02/2017,1341863,1868.13,Decent Homes
North West Leicestershire District Council,31UH,Housing Repairs,HRA Housing Repairs & Maintenance,HRAHRM,Kier Services Maintenance East Ltd,A039980,22/02/2017,1341864,1771.41,Housing Repairs
North West Leicestershire District Council,31UH,Housing Repairs,HRA Housing Repairs & Maintenance,HRAHRM,Kier Services Maintenance East Ltd,A039980,22/02/2017,1341865,1771.41,Housing Repairs
North West Leicestershire District Council,31UH,Housing Repairs,HRA Housing Repairs & Maintenance,HRAHRM,Kier Services Maintenance East Ltd,A039980,22/02/2017,1341866,1771.41,Housing Repairs
North West Leicestershire District Council,31UH,Housing Repairs,HRA Housing Repairs & Maintenance,HRAHRM,Kier Services Maintenance East Ltd,A039980,22/02/2017,1341867,1868.13,Decent Homes
North West Leicestershire District Council,31UH,Housing Repairs,HRA Housing Repairs & Maintenance,HRAHRM,Kier Services Maintenance East Ltd,A039980,22/02/2017,1341868,1868.13,Housing Repairs
North West Leicestershire District Council,31UH,Housing Repairs,HRA Housing Repairs & Maintenance,HRAHRM,Kier Services Maintenance East Ltd,A039980,22/02/2017,1341869,1771.41,Housing Repairs
North West Leicestershire District Council,31UH,Housing Repairs,HRA Housing Repairs & Maintenance,HRAHRM,Kier Services Maintenance East Ltd,A039980,22/02/2017,1341870,1771.41,Housing Repairs
North West Leicestershire District Council,31UH,Housing Repairs,HRA Housing Repairs & Maintenance,HRAHRM,Kier Services Maintenance East Ltd,A039980,22/02/2017,1341871,1771.41,Housing Repairs
North West Leicestershire District Council,31UH,Housing Repairs,HRA Housing Repairs & Maintenance,HRAHRM,Kier Services Maintenance East Ltd,A039980,22/02/2017,1341872,1868.13,Housing Repairs
North West Leicestershire District Council,31UH,Housing Repairs,HRA Housing Repairs & Maintenance,HRAHRM,Kier Services Maintenance East Ltd,A039980,22/02/2017,1341873,1868.13,Housing Repairs
North West Leicestershire District Council,31UH,Property Services,Property Facilities Management,PROPFM,Valuation Office Agency,A034291,01/03/2017,1341877,434,Legal & Professional Services
North West Leicestershire District Council,31UH,Street Management,Environment Waste Management,ENOWM,Sita UK Ltd,A001108,22/02/2017,1341879,355.09,Tipping Charges
North West Leicestershire District Council,31UH,Planning & Development,Environment Community Planning,ECP,Jon Etchells Consulting Ltd,A029305,22/02/2017,1341881,2894,External Legal Fees & Advice
North West Leicestershire District Council,31UH,Housing Repairs,HRA Housing Repairs & Maintenance,HRAHRM,Timber-Link Fencing Ltd,A033297,01/03/2017,1341889,625,External Materials
North West Leicestershire District Council,31UH,Housing Repairs,HRA Housing Repairs & Maintenance,HRAHRM,Timber-Link Fencing Ltd,A033297,01/03/2017,1341890,1050,External Materials
North West Leicestershire District Council,31UH,Information Technology,ICT Services,ICT,Canon UK Ltd,A040459,01/03/2017,1341892,1474.38,Equipment Operating Leases
North West Leicestershire District Council,31UH,Property Services,Property Commercial Lettings,PROPCL,Moira Furnace Museum Trust Ltd,A001136,01/03/2017,1341894,930.42,Contract Cleaning
North West Leicestershire District Council,31UH,Planning & Development,Environment Community Planning,ECP,The CCTV User Group Ltd,A043781,01/03/2017,1341895,359,Training Course
North West Leicestershire District Council,31UH,Street Management,Environment Parks,ENOP,New Build Landscaping & Home,A043278,01/03/2017,1341898,1700,External Materials
North West Leicestershire District Council,31UH,#N/A,#N/A,BDT,Act Now Training Ltd,A030708,01/03/2017,1341899,449,Training Course
North West Leicestershire District Council,31UH,Street Management,Environment Transport,ENOT,Johnston Sweepers Ltd,A039355,01/03/2017,1341902,290,Repairs - Parts
North West Leicestershire District Council,31UH,Planning & Development,Environment Planning Policy,EPP,Edwards & Edwards Consultancy Ltd,A041694,01/03/2017,1341904,760,External Legal Fees & Advice
North West Leicestershire District Council,31UH,Property Services,Property Commercial Lettings,PROPCL,Coalville Cleaning Services,A003037,01/03/2017,1341912,558.06,Contract Cleaning
North West Leicestershire District Council,31UH,Property Services,Property Commercial Lettings,PROPCL,Coalville Cleaning Services,A003037,01/03/2017,1341913,289.95,Contract Cleaning
North West Leicestershire District Council,31UH,Housing,HRA Performance & Business Support,HRAPBS,Michael Page International Recruitment Ltd,A041893,01/03/2017,1341914,1750,Agency Staff
North West Leicestershire District Council,31UH,Legal & Democratic,Legal Services,LDLS,Browne Jacobson LLP,A000251,01/03/2017,1341919,4612.22,Legal & Professional Services
North West Leicestershire District Council,31UH,Corporate Director,Human Resources,HR,Health Management Ltd,A038840,01/03/2017,1341921,348,Medical Fees
North West Leicestershire District Council,31UH,Information Technology,ICT Services,ICT,Virgin Media Business,A008908,01/03/2017,1341923,403.72,Admin Equipment - Maintenance
North West Leicestershire District Council,31UH,Street Management,Environment Transport,ENOT,J F Lloyd & Sons,A000991,01/03/2017,1341924,250,Hire Of Operational Equipment
North West Leicestershire District Council,31UH,Finance,Housing Benefits,BENS,Morgan Hunt Public Sector Ltd,A033787,01/03/2017,1341926,888.24,Agency Staff
North West Leicestershire District Council,31UH,Legal & Democratic,Electoral & Land Charges,LDELC,Crestline Printers Limited,A000434,01/03/2017,1341929,756,Printing Services
North West Leicestershire District Council,31UH,Environmental Health,Environmental Services,EES,The Co-operative Funeralcare,A023141,01/03/2017,1341930,500,Welfare Funerals
North West Leicestershire District Council,31UH,Finance,Exchequer Services,EXCH,Comensura Limited,A036958,01/03/2017,1341931,19950.22,Agency Staff
North West Leicestershire District Council,31UH,Finance,Housing Benefits,BENS,Morgan Hunt Public Sector Ltd,A033787,01/03/2017,1341934,650.16,Agency Staff
North West Leicestershire District Council,31UH,Street Management,Environment Transport,ENOT,Sandicliffe Motor Group,A037009,01/03/2017,1341939,310.25,Repairs - Parts
North West Leicestershire District Council,31UH,Street Management,Environment Transport,ENOT,Mobile Hydraulics Ltd,A001131,01/03/2017,1341943,391.23,Repairs - Parts
North West Leicestershire District Council,31UH,Legal and Support Services,Business Development Team,BDT,Julia Burkin,A043213,01/03/2017,1341948,2288.1,Consultants Fees
North West Leicestershire District Council,31UH,Planning & Development,Environment Community Planning,ECP,Zest Theatre,A039268,01/03/2017,1341950,1462.5,RESPECT Scheme
North West Leicestershire District Council,31UH,Planning & Development,Environment Community Planning,ECP,Voluntary Action Leicestershire,A038706,01/03/2017,1341951,1000,Training Course
North West Leicestershire District Council,31UH,Legal and Support Services,Business development Team,BDT,Deana Wildgoose - The Hero Project,A043851,01/03/2017,1341952,300,Free Tree Scheme
North West Leicestershire District Council,31UH,Leisure Centres,Hood Park Leisure Centre,HPLC,Abacus Lighting Limited,A030378,01/03/2017,1341953,1180.59,General Repairs
North West Leicestershire District Council,31UH,Chief Exec,Chief Executive,CHEX,David Nash ( trading as Koda Consulting),A043827,01/03/2017,1341954,2100,Consultants Fees
North West Leicestershire District Council,31UH,Information Technology,ICT Services,ICT,Freedom Communications (UK) Ltd,A032826,01/03/2017,1341957,-2151.76,Admin Equipment - Maintenance
North West Leicestershire District Council,31UH,Information Technology,ICT Services,ICT,Freedom Communications (UK) Ltd,A032826,01/03/2017,1341958,3738.48,Admin Equipment - Maintenance
North West Leicestershire District Council,31UH,Street Management,Environment - Street Scene,ESS,Metric Group Ltd (Sales),A028996,01/03/2017,1341959,1118,Operational Equipment
North West Leicestershire District Council,31UH,Housing Repairs,HRA Housing Repairs & Maintenance,HRAHRM,Oakleaf Surveying Ltd,A043749,01/03/2017,1341960,4735,Contract Payments (Dws) Ext
North West Leicestershire District Council,31UH,Information Technology,ICT Services,ICT,NB Data Ltd,A033802,01/03/2017,1341961,1006.35,Operational Equipment
North West Leicestershire District Council,31UH,Street Management,Environment Transport,ENOT,Calor Gas Limited,A032686,01/03/2017,1341963,983.07,Gas
North West Leicestershire District Council,31UH,Leisure Centres,Hood Park Leisure Centre,HPLC,Dura-Sport (Leisure Care) Ltd,A041815,01/03/2017,1341964,280,General Repairs
North West Leicestershire District Council,31UH,Street Management,Environment Transport,ENOT,Sherwood Truck and Van Limited,A035120,01/03/2017,1341966,322.18,Repairs - Parts
North West Leicestershire District Council,31UH,Housing,HRA Housing Management,HRAHM,Impact Marketing & Publicity Ltd,A042927,01/03/2017,1341970,895,Marketing
North West Leicestershire District Council,31UH,Leisure & Culture,Sport & Physical Activity,SPA,Leicestershire County Council,A000950,01/03/2017,1341971,8582.8,Local Sports Alliance
North West Leicestershire District Council,31UH,Leisure Centres,Hermitage Leisure Centre,HLC,J P Lennard Ltd,A000969,01/03/2017,1341980,388.85,Operational Equipment
North West Leicestershire District Council,31UH,Leisure Centres,Hermitage Leisure Centre,HLC,The Wright Foundation,A015111,01/03/2017,1341983,595,Training Course
North West Leicestershire District Council,31UH,Leisure Centres,Hood Park Leisure Centre,HPLC,ADT Fire And Security,A000021,01/03/2017,1341984,809.31,Service Contracts
North West Leicestershire District Council,31UH,Property Services,Property Facilities Management,PROPFM,Valuation Office Agency,A034291,01/03/2017,1341989,530.25,Recreational Equipment
North West Leicestershire District Council,31UH,Planning & Development,Environment Community Planning,ECP,Baydale Control Systems Ltd,A042565,01/03/2017,1341992,812.85,Operational Equipment - Rep & Maint
North West Leicestershire District Council,31UH,Planning & Development,Environment - Town Centre/CCTV,ECCTV,SJN Property Services Ltd,A042946,01/03/2017,1341993,2724.25,Grants
North West Leicestershire District Council,31UH,Housing Repairs,HRA Housing Repairs & Maintenance,HRAHRM,Capita Gas Registration & Ancillary Services Ltd,A036004,01/03/2017,1341994,523,Training Course
North West Leicestershire District Council,31UH,Leisure Centres,Hood Park Leisure Centre,HPLC,Virgin Media Business,A035373,01/03/2017,1341999,711.49,Telephone Charge / Rental
North West Leicestershire District Council,31UH,Leisure Centres,Hermitage Bar & Catering,HLBC,Shires Event Hire,A036676,01/03/2017,1342014,519.05,Event Materials
North West Leicestershire District Council,31UH,Street Management,Environment Transport,ENOT,Lee Wells Autobodies Ltd,A031849,01/03/2017,1342015,568,Non Insurance Damage
North West Leicestershire District Council,31UH,Street Management,Environment Transport,ENOT,Ford & Slater Group Ltd,A000625,01/03/2017,1342016,273.5,Repairs - Parts
North West Leicestershire District Council,31UH,Information Technology,ICT Services,ICT,GE Capital Equipment Finance Ltd,A017429,01/03/2017,1342018,339.08,Equipment Operating Leases
North West Leicestershire District Council,31UH,Information Technology,ICT Services,ICT,Canon UK Ltd,A040459,01/03/2017,1342019,481.05,Equipment Operating Leases
North West Leicestershire District Council,31UH,Information Technology,ICT Services,ICT,Canon UK Ltd,A040459,01/03/2017,1342020,356.83,Photo Copier - Copy Charges Rental
North West Leicestershire District Council,31UH,Information Technology,ICT Services,ICT,Canon UK Ltd,A040459,01/03/2017,1342023,1904.69,Photo Copier - Copy Charges Rental
North West Leicestershire District Council,31UH,Housing Repairs,HRA Housing Repairs & Maintenance,HRAHRM,Alliance Contracting Solutions Ltd,A043325,01/03/2017,1342025,1083.09,Legal & Professional Services
North West Leicestershire District Council,31UH,Housing,HRA Performance & Business Support,HRAPBS,Michael Page International Recruitment Ltd,A041893,01/03/2017,1342044,1750,Agency Staff
North West Leicestershire District Council,31UH,Housing,HRA Housing Management,HRAHM,Barony Consulting Group Ltd,A043863,01/03/2017,1342045,399,Training Course
North West Leicestershire District Council,31UH,Property Services,Property Facilities Management,PROPFM,Zurich Assurance Ltd,A038748,01/03/2017,1342046,500,Contract Payments (Other) Ext
North West Leicestershire District Council,31UH,Finance,Financial Planning,FINPLA,Blackrock Cash Management,A039249,28/02/2017,1342056,1100000,Policy Lending
North West Leicestershire District Council,31UH,Finance,Financial Planning,FINPLA,Royal Bank of Scotland Call A/c,A040451,28/02/2017,1342058,900000,Policy Lending
North West Leicestershire District Council,31UH,Finance,Financial Planning,FINPLA,Scottish Widows Investment Partnerhiip,A039247,28/02/2017,1342059,5500000,Policy Lending
North West Leicestershire District Council,31UH,Finance,Financial Planning,FINPLA,Salford City Council,A042800,28/02/2017,1342060,1000000,Policy Lending
North West Leicestershire District Council,31UH,Finance,Financial Planning,FINPLA,Salford City Council,A042800,28/02/2017,1342061,1000000,Policy Lending
North West Leicestershire District Council,31UH,Finance,Financial Planning,FINPLA,Kegworth Parish Council,A000882,28/02/2017,1342062,50000,East Midland Gateway Contribution
North West Leicestershire District Council,31UH,Finance,Financial Planning,FINPLA,Castle Donington Parish Council,A000300,28/02/2017,1342063,50000,East Midland Gateway Contribution
North West Leicestershire District Council,31UH,Finance,Financial Planning,FINPLA,Lockington Cum Hemington PC,A000999,28/02/2017,1342064,50000,East Midland Gateway Contribution
North West Leicestershire District Council,31UH,Finance,Exchequer Services,EXCH,Vodafone Limited,A001861,28/02/2017,1342065,1412,Mobile Telephones
North West Leicestershire District Council,31UH,Finance,Exchequer Services,EXCH,British Telecommunications Plc,A000233,28/02/2017,1342066,5488.35,Alarm System Telephones
North West Leicestershire District Council,31UH,Street Management,Environment Transport,ENOT,J F Lloyd & Sons,A000991,01/03/2017,1342068,300,Hire Of Operational Equipment
North West Leicestershire District Council,31UH,Housing,HRA Performance & Business Support,HRAPBS,TPAS Limited,A028863,01/03/2017,1342070,1364,Subscriptions
North West Leicestershire District Council,31UH,Finance,Financial Planning,FINPLA,Kegworth Parish Council,A000882,01/03/2017,1342071,50000,East Midland Gateway Contribution
North West Leicestershire District Council,31UH,Finance,Financial Planning,FINPLA,Lockington Cum Hemington PC,A000999,01/03/2017,1342072,50000,East Midland Gateway Contribution
North West Leicestershire District Council,31UH,Finance,Financial Planning,FINPLA,Castle Donington Parish Council,A000300,01/03/2017,1342073,50000,East Midland Gateway Contribution
North West Leicestershire District Council,31UH,Street Management,Environment Waste Management,ENOWM,Straight Plc,A024906,01/03/2017,1342074,4480,General Materials
North West Leicestershire District Council,31UH,Street Management,Environment Waste Management,ENOWM,Straight Plc,A024906,01/03/2017,1342075,4480,General Materials
North West Leicestershire District Council,31UH,Street Management,Environment Transport,ENOT,Driveline Systems Limited,A037762,01/03/2017,1342076,775.7,Repairs - Parts
North West Leicestershire District Council,31UH,Housing Repairs,HRA Housing Repairs & Maintenance,HRAHRM,Redacted-personal data,A043866,01/03/2017,1342156,1027.29,Compensation
